[Event "CZE-ch Youth G10-G12-G14 2022"]
[Site "Luhacovice"]
[Date "2022.03.13"]
[Round "2.16"]
[White "Sochorova Valentyna"]
[Black "Kozusnikova, Daniela"]
[Result "0-1"]
[ECO "C15"]
[WhiteElo "1201"]
[BlackElo "1364"]
[Annotator "NA"]
[PlyCount "142"]
[EventDate "2022.03.12"]
[EventType "swiss"]
[EventCountry "CZE"]
[SourceTitle "playchess.com"]
[Source "ChessBase"]
[SourceQuality "1"]
[TimeControl "40/5400+30:1800+30"]

1. e4 {[%emt 0:00:06]} e6 {[%emt 0:00:05]} 2. d4 {[%emt 0:00:18]} d5 {[%emt 0:00:09]} 3. Nc3 {[%emt 0:00:40]} Bb4 {[%emt 0:00:19]} 4. Bd2 {[%emt 0:00:24]} Bxc3 {[%emt 0:03:51]} 5. Bxc3 {[%emt 0:04:03]} dxe4 {[%emt 0:03:52]} 6. Bc4 {[%emt 0:11:43]} Ne7 {[%emt 0:03:18]} 7. Ne2 {[%emt 0:02:45]} O-O {[%emt 0:03:29]} 8. O-O {[%emt 0:02:11]} Nbc6 {[%emt 0:01:38]} 9. Ng3 {[%emt 0:07:30]} f5 {[%emt 0:02:19]} 10. Re1 {[%emt 0:08:40]} Nd5 {[%emt 0:09:20]} 11. Qh5 {[%emt 0:04:48]} Qf6 {[%emt 0:06:37]} 12. Rad1 {[%emt 0:06:53]} Nf4 {[%emt 0:03:56]} 13. Qxf5 {[%emt 0:08:08]} Qxf5 {[%emt 0:01:21]} 14. Nxf5 {[%emt 0:00:12]} Rxf5 {[%emt 0:00:29]} 15. Rxe4 {[%emt 0:03:28]} Bd7 {[%emt 0:03:30]} 16. Bd2 {[%emt 0:04:58]} Nd5 {[%emt 0:05:22]} 17. Bb3 {[%emt 0:05:56]} Kh8 {[%emt 0:09:26]} 18. Bc1 {[%emt 0:06:26]} Na5 {[%emt 0:07:38]} 19. Bxd5 {[%emt 0:02:25]} Rxd5 {[%emt 0:10:43]} 20. Rf4 {[%emt 0:00:37]} Rf5 {[%emt 0:01:22]} 21. Re4 {[%emt 0:00:55]} Nc6 {[%emt 0:02:19]} 22. Bf4 {[%emt 0:00:42]} Raf8 {[%emt 0:02:19]} 23. Bg3 {[%emt 0:00:58]} Ne7 {[%emt 0:02:24]} 24. Re2 {[%emt 0:01:10]} c6 {[%emt 0:00:53]} 25. Bd6 {[%emt 0:00:29]} Re8 {[%emt 0:01:17]} 26. c4 {[%emt 0:01:05]} Ng6 {[%emt 0:00:31]} 27. Rde1 {[%emt 0:01:16]} h6 {[%emt 0:01:16]} 28. g3 {[%emt 0:00:44]} Kh7 {[%emt 0:00:51]} 29. Bb4 {[%emt 0:00:48]} Bc8 {[%emt 0:01:45]} 30. Bc3 {[%emt 0:00:55]} Rd8 {[%emt 0:00:40]} 31. b3 {[%emt 0:01:08]} Re8 {[%emt 0:02:11]} 32. Bb2 {[%emt 0:00:51]} b5 {[%emt 0:00:39]} 33. Rc1 {[%emt 0:01:47]} bxc4 {[%emt 0:00:47]} 34. bxc4 {[%emt 0:00:05]} e5 {[%emt 0:01:37]} 35. Rce1 {[%emt 0:01:24]} Be6 {[%emt 0:00:57]} 36. Rc2 {[%emt 0:00:20]} Bd7 {[%emt 0:01:25]} 37. Kf1 {[%emt 0:01:29]} exd4 {[%emt 0:00:52]} 38. Rxe8 {[%emt 0:00:25]} Bxe8 {[%emt 0:00:03]} 39. Bxd4 {[%emt 0:00:14]} a6 {[%emt 0:00:18]} 40. Re2 {[%emt 0:00:20]} Bf7 {[%emt 0:00:17]} 41. Rc2 {[%emt 0:30:25]} Bg8 {[%emt 0:30:41]} 42. c5 {[%emt 0:00:34]} Rd5 {[%emt 0:00:27]} 43. Rd2 {[%emt 0:00:21]} Ne7 {[%emt 0:00:25]} 44. Be3 {[%emt 0:00:30]} Rxd2 {[%emt 0:00:04]} 45. Bxd2 {[%emt 0:00:05]} Bxa2 {[%emt 0:00:12]} 46. Ke2 {[%emt 0:00:22]} Kg6 {[%emt 0:00:32]} 47. Kf3 {[%emt 0:00:16]} Kf5 {[%emt 0:01:37]} 48. Bc3 {[%emt 0:00:12]} Bd5+ {[%emt 0:00:35]} 49. Ke3 {[%emt 0:00:26]} g6 {[%emt 0:00:13]} 50. Bb4 {[%emt 0:00:40]} Ng8 {[%emt 0:00:20]} 51. h3 {[%emt 0:00:57]} h5 {[%emt 0:00:18]} 52. h4 {[%emt 0:00:34]} Nf6 {[%emt 0:00:14]} 53. f3 {[%emt 0:00:30]} Nd7 {[%emt 0:00:19]} 54. Kd4 {[%emt 0:00:40]} Bxf3 {[%emt 0:00:24]} 55. Ke3 {[%emt 0:00:54]} Bd5 {[%emt 0:00:07]} 56. Kd4 {[%emt 0:01:25]} Kg4 {[%emt 0:00:13]} 57. Be1 {[%emt 0:00:19]} Kf3 {[%emt 0:00:20]} 58. Kd3 {[%emt 0:01:44]} Nxc5+ {[%emt 0:00:17]} 59. Kc3 {[%emt 0:01:21]} Ne4+ {[%emt 0:00:30]} 60. Kb4 {[%emt 0:01:33]} Nxg3 {[%emt 0:00:20]} 61. Kc5 {[%emt 0:00:29]} Kg4 {[%emt 0:00:32]} 62. Kd4 {[%emt 0:01:25]} Nf5+ {[%emt 0:00:55]} 63. Kc5 {[%emt 0:00:18]} Nxh4 {[%emt 0:00:08]} 64. Kb6 {[%emt 0:00:33]} Nf3 {[%emt 0:00:48]} 65. Bb4 {[%emt 0:00:28]} h4 {[%emt 0:00:21]} 66. Kxa6 {[%emt 0:00:12]} h3 {[%emt 0:00:10]} 67. Bd6 {[%emt 0:00:12]} Kf5 {[%emt 0:00:27]} 68. Bg3 {[%emt 0:00:20]} h2 {[%emt 0:00:07]} 69. Bxh2 {[%emt 0:00:19]} Nxh2 {[%emt 0:00:03]} 70. Kb6 {[%emt 0:00:07]} g5 {[%emt 0:00:15]} 71. Kc5 {[%emt 0:00:16]} Nf3 {[%emt 0:00:21]} 0-1

[Event "CZE-ch Youth G10-G12-G14 2022"]
[Site "Luhacovice"]
[Date "2022.03.13"]
[Round "2.17"]
[White "Stara, Zuzana"]
[Black "Zezulova Sara"]
[Result "1-0"]
[ECO "C26"]
[WhiteElo "1322"]
[BlackElo "1000"]
[Annotator "NA"]
[PlyCount "49"]
[EventDate "2022.03.12"]
[EventType "swiss"]
[EventCountry "CZE"]
[SourceTitle "playchess.com"]
[Source "ChessBase"]
[SourceQuality "1"]
[TimeControl "40/5400+30:1800+30"]

1. e4 {[%emt 0:00:03]} e5 {[%emt 0:00:10]} 2. Nc3 {[%emt 0:00:11]} Nc6 {[%emt 0:00:14]} 3. g3 {[%emt 0:00:13]} Nf6 {[%emt 0:00:16]} 4. Bg2 {[%emt 0:00:11]} Bc5 {[%emt 0:00:39]} 5. Nge2 {[%emt 0:00:46]} d6 {[%emt 0:01:07]} 6. Na4 {[%emt 0:00:16]} O-O {[%emt 0:00:37]} 7. Nxc5 {[%emt 0:00:06]} dxc5 {[%emt 0:00:25]} 8. O-O {[%emt 0:00:29]} Be6 {[%emt 0:01:11]} 9. d3 {[%emt 0:00:12]} Nd4 {[%emt 0:00:36]} 10. Nxd4 {[%emt 0:00:59]} cxd4 {[%emt 0:00:25]} 11. f4 {[%emt 0:01:34]} Ng4 {[%emt 0:01:07]} 12. f5 {[%emt 0:01:19]} Bd7 {[%emt 0:00:54]} 13. Qxg4 {[%emt 0:00:27]} Qf6 {[%emt 0:01:12]} 14. Bg5 {[%emt 0:02:28]} Qd6 {[%emt 0:01:41]} 15. Qe2 {[%emt 0:02:34]} f6 {[%emt 0:00:38]} 16. Bd2 {[%emt 0:00:29]} g6 {[%emt 0:01:28]} 17. Bh3 {[%emt 0:04:54]} Ba4 {[%emt 0:01:11]} 18. fxg6 {[%emt 0:01:38]} Qd7 {[%emt 0:01:02]} 19. Bxd7 {[%emt 0:00:16]} Bxd7 {[%emt 0:00:15]} 20. gxh7+ {[%emt 0:00:06]} Kh8 {[%emt 0:00:41]} 21. Qh5 {[%emt 0:01:10]} Rae8 {[%emt 0:01:29]} 22. Bh6 {[%emt 0:00:30]} Bg4 {[%emt 0:01:38]} 23. Qxg4 {[%emt 0:00:21]} Rf7 {[%emt 0:01:54]} 24. Qg6 {[%emt 0:00:29]} Rxh7 {[%emt 0:03:41]} 25. Qxe8# {[%emt 0:00:03]} 1-0

[Event "CZE-ch Youth G10-G12-G14 2022"]
[Site "Luhacovice"]
[Date "2022.03.13"]
[Round "2.18"]
[White "Lukaskova Ellen"]
[Black "Slivova, Linda"]
[Result "0-1"]
[ECO "B01"]
[WhiteElo "1058"]
[BlackElo "1298"]
[Annotator "NA"]
[PlyCount "110"]
[EventDate "2022.03.12"]
[EventType "swiss"]
[EventCountry "CZE"]
[SourceTitle "playchess.com"]
[Source "ChessBase"]
[SourceQuality "1"]
[TimeControl "40/5400+30:1800+30"]

1. e4 {[%emt 0:00:04]} d5 {[%emt 0:00:06]} 2. exd5 {[%emt 0:02:29]} Qxd5 {[%emt 0:02:53]} 3. Qf3 {[%emt 0:04:08]} Nf6 {[%emt 0:00:30]} 4. Qxd5 {[%emt 0:00:30]} Nxd5 {[%emt 0:00:30]} 5. Bc4 {[%emt 0:00:30]} Nb6 {[%emt 0:00:30]} 6. Bb5+ {[%emt 0:00:30]} c6 {[%emt 0:00:30]} 7. Be2 {[%emt 0:06:10]} Bf5 {[%emt 0:06:57]} 8. d3 {[%emt 0:00:30]} g6 {[%emt 0:00:30]} 9. Nc3 {[%emt 0:00:30]} Bg7 {[%emt 0:00:30]} 10. Bf3 {[%emt 0:00:30]} N8d7 {[%emt 0:00:30]} 11. Nge2 {[%emt 0:00:30]} O-O {[%emt 0:00:30]} 12. Be4 {[%emt 0:02:12]} Bxe4 {[%emt 0:04:09]} 13. dxe4 {[%emt 0:01:52]} Rad8 {[%emt 0:02:44]} 14. O-O {[%emt 0:01:59]} Ne5 {[%emt 0:05:45]} 15. f4 {[%emt 0:03:42]} Nec4 {[%emt 0:05:13]} 16. f5 {[%emt 0:04:50]} Ne5 {[%emt 0:03:29]} 17. fxg6 {[%emt 0:05:25]} hxg6 {[%emt 0:01:24]} 18. b3 {[%emt 0:04:34]} Nbd7 {[%emt 0:08:44]} 19. Ba3 {[%emt 0:04:02]} Rfe8 {[%emt 0:05:01]} 20. Rad1 {[%emt 0:05:37]} Bf6 {[%emt 0:06:14]} 21. Bb2 {[%emt 0:04:14]} Nc5 {[%emt 0:06:40]} 22. Ng3 {[%emt 0:04:15]} Ng4 {[%emt 0:01:14]} 23. Rxd8 {[%emt 0:02:08]} Rxd8 {[%emt 0:00:17]} 24. Rd1 {[%emt 0:03:45]} Bd4+ {[%emt 0:01:14]} 25. Kf1 {[%emt 0:01:49]} Ne3+ {[%emt 0:00:15]} 26. Ke2 {[%emt 0:00:40]} Nxd1 {[%emt 0:00:10]} 27. Nxd1 {[%emt 0:00:14]} Bxb2 {[%emt 0:00:37]} 28. Nxb2 {[%emt 0:00:09]} Kg7 {[%emt 0:00:45]} 29. Nc4 {[%emt 0:01:37]} b6 {[%emt 0:01:58]} 30. h4 {[%emt 0:02:09]} Ne6 {[%emt 0:04:22]} 31. Ke3 {[%emt 0:01:25]} Nd4 {[%emt 0:01:25]} 32. c3 {[%emt 0:01:53]} Nb5 {[%emt 0:00:59]} 33. Ne5 {[%emt 0:00:32]} Rd6 {[%emt 0:01:43]} 34. h5 {[%emt 0:01:07]} Re6 {[%emt 0:09:49]} 35. Nd7 {[%emt 0:02:05]} Nxc3 {[%emt 0:02:35]} 36. a4 {[%emt 0:01:28]} Nd5+ {[%emt 0:00:59]} 37. Kd3 {[%emt 0:00:24]} Nf4+ {[%emt 0:00:31]} 38. Kc3 {[%emt 0:01:00]} Nxh5 {[%emt 0:00:29]} 39. Nxh5+ {[%emt 0:00:16]} gxh5 {[%emt 0:00:08]} 40. e5 {[%emt 0:00:23]} Rg6 {[%emt 0:00:32]} 41. e6 {[%emt 0:30:20]} Rxe6 {[%emt 0:30:23]} 42. Nxb6 {[%emt 0:00:14]} axb6 {[%emt 0:00:09]} 43. a5 {[%emt 0:00:00]} bxa5 {[%emt 0:00:00]} 44. b4 {[%emt 0:00:00]} axb4+ {[%emt 0:00:00]} 45. Kxb4 {[%emt 0:00:00]} Rd6 {[%emt 0:00:10]} 46. Kc3 {[%emt 0:00:09]} e5 {[%emt 0:00:05]} 47. g4 {[%emt 0:00:21]} hxg4 {[%emt 0:00:06]} 48. Kc4 {[%emt 0:00:08]} g3 {[%emt 0:00:10]} 49. Kc5 {[%emt 0:00:14]} Rd1 {[%emt 0:00:09]} 50. Kxc6 {[%emt 0:00:10]} g2 {[%emt 0:00:14]} 51. Kc5 {[%emt 0:00:06]} g1=Q+ {[%emt 0:00:12]} 52. Kc4 {[%emt 0:00:10]} Qd4+ {[%emt 0:00:18]} 53. Kb5 {[%emt 0:00:05]} Rc1 {[%emt 0:00:17]} 54. Ka5 {[%emt 0:00:15]} Qb2 {[%emt 0:00:11]} 55. Ka4 {[%emt 0:00:11]} Ra1# {[%emt 0:00:19]} 0-1

[Event "CZE-ch Youth G10-G12-G14 2022"]
[Site "Luhacovice"]
[Date "2022.03.13"]
[Round "2.19"]
[White "Bartova Hana"]
[Black "Hladka, Leontyna"]
[Result "1/2-1/2"]
[ECO "C29"]
[WhiteElo "1000"]
[BlackElo "1134"]
[Annotator "NA"]
[PlyCount "62"]
[EventDate "2022.03.12"]
[EventType "swiss"]
[EventCountry "CZE"]
[SourceTitle "playchess.com"]
[Source "ChessBase"]
[SourceQuality "1"]
[TimeControl "40/5400+30:1800+30"]

1. e4 {[%emt 0:00:00]} e5 {[%emt 0:00:09]} 2. Nc3 {[%emt 0:00:11]} Nf6 {[%emt 0:00:35]} 3. f4 {[%emt 0:00:13]} Nc6 {[%emt 0:01:14]} 4. fxe5 {[%emt 0:00:13]} Nxe5 {[%emt 0:00:25]} 5. d4 {[%emt 0:00:07]} Ng6 {[%emt 0:01:24]} 6. Bd3 {[%emt 0:01:25]} Bb4 {[%emt 0:01:38]} 7. Bd2 {[%emt 0:00:27]} Bxc3 {[%emt 0:00:40]} 8. Bxc3 {[%emt 0:00:24]} O-O {[%emt 0:01:03]} 9. Nf3 {[%emt 0:01:31]} d6 {[%emt 0:03:09]} 10. e5 {[%emt 0:02:02]} dxe5 {[%emt 0:01:06]} 11. Bxg6 {[%emt 0:01:06]} hxg6 {[%emt 0:01:06]} 12. dxe5 {[%emt 0:00:25]} Qe7 {[%emt 0:01:30]} 13. O-O {[%emt 0:00:46]} Ne4 {[%emt 0:03:20]} 14. Qd4 {[%emt 0:02:58]} Nxc3 {[%emt 0:01:06]} 15. Qxc3 {[%emt 0:00:17]} Bf5 {[%emt 0:01:25]} 16. Rad1 {[%emt 0:02:53]} Rad8 {[%emt 0:03:32]} 17. Rfe1 {[%emt 0:02:35]} Rxd1 {[%emt 0:03:59]} 18. Rxd1 {[%emt 0:00:18]} Rd8 {[%emt 0:00:31]} 19. Rxd8+ {[%emt 0:03:12]} Qxd8 {[%emt 0:00:17]} 20. Qd4 {[%emt 0:00:27]} Qxd4+ {[%emt 0:01:29]} 21. Nxd4 {[%emt 0:00:16]} a6 {[%emt 0:01:05]} 22. c4 {[%emt 0:00:44]} Kf8 {[%emt 0:00:23]} 23. Kf2 {[%emt 0:00:16]} Ke7 {[%emt 0:00:14]} 24. Ke3 {[%emt 0:00:43]} Be6 {[%emt 0:02:16]} 25. Nxe6 {[%emt 0:01:37]} Kxe6 {[%emt 0:00:10]} 26. Ke4 {[%emt 0:00:19]} b6 {[%emt 0:00:37]} 27. b4 {[%emt 0:00:38]} c6 {[%emt 0:01:15]} 28. a3 {[%emt 0:00:24]} f6 {[%emt 0:04:38]} 29. exf6 {[%emt 0:02:54]} gxf6 {[%emt 0:00:28]} 30. g4 {[%emt 0:00:18]} Kd6 {[%emt 0:01:22]} 31. h4 {[%emt 0:00:27]} Ke6 {[%emt 0:00:54]} 1/2-1/2

[Event "CZE-ch Youth G10-G12-G14 2022"]
[Site "Luhacovice"]
[Date "2022.03.13"]
[Round "2.20"]
[White "Martinkovicova Nela"]
[Black "Pruskova, Justyna"]
[Result "1/2-1/2"]
[ECO "C36"]
[WhiteElo "1032"]
[BlackElo "1003"]
[Annotator "NA"]
[PlyCount "88"]
[EventDate "2022.03.12"]
[EventType "swiss"]
[EventCountry "CZE"]
[SourceTitle "playchess.com"]
[Source "ChessBase"]
[SourceQuality "1"]
[TimeControl "40/5400+30:1800+30"]

1. e4 {[%emt 0:00:04]} e5 {[%emt 0:00:06]} 2. f4 {[%emt 0:00:12]} exf4 {[%emt 0:00:19]} 3. Nf3 {[%emt 0:00:48]} d5 {[%emt 0:00:40]} 4. Nc3 {[%emt 0:02:06]} dxe4 {[%emt 0:05:53]} 5. Nxe4 {[%emt 0:00:53]} Qe7 {[%emt 0:01:25]} 6. Qe2 {[%emt 0:01:36]} Bg4 {[%emt 0:03:40]} 7. d4 {[%emt 0:01:20]} f5 {[%emt 0:02:31]} 8. Nf2 {[%emt 0:03:11]} Qxe2+ {[%emt 0:01:23]} 9. Bxe2 {[%emt 0:00:33]} Bd6 {[%emt 0:00:43]} 10. h3 {[%emt 0:01:52]} Bxf3 {[%emt 0:00:58]} 11. Bxf3 {[%emt 0:00:11]} c6 {[%emt 0:02:29]} 12. Nd3 {[%emt 0:01:26]} Nd7 {[%emt 0:02:55]} 13. Bxf4 {[%emt 0:01:45]} Bxf4 {[%emt 0:00:18]} 14. Nxf4 {[%emt 0:00:10]} Ne7 {[%emt 0:00:31]} 15. Ne6 {[%emt 0:00:53]} Rc8 {[%emt 0:05:23]} 16. Nxg7+ {[%emt 0:00:48]} Kf7 {[%emt 0:02:11]} 17. Nh5 {[%emt 0:01:11]} Nf6 {[%emt 0:05:31]} 18. Nxf6 {[%emt 0:01:24]} Kxf6 {[%emt 0:00:20]} 19. Kd2 {[%emt 0:01:06]} Rcd8 {[%emt 0:01:01]} 20. Ke3 {[%emt 0:01:05]} Nd5+ {[%emt 0:01:29]} 21. Bxd5 {[%emt 0:00:55]} Rxd5 {[%emt 0:00:24]} 22. Rae1 {[%emt 0:01:59]} Re8+ {[%emt 0:00:36]} 23. Kd3 {[%emt 0:00:19]} Red8 {[%emt 0:01:17]} 24. c3 {[%emt 0:01:06]} c5 {[%emt 0:00:48]} 25. g4 {[%emt 0:03:02]} cxd4 {[%emt 0:01:23]} 26. c4 {[%emt 0:00:45]} Ra5 {[%emt 0:02:46]} 27. gxf5 {[%emt 0:01:00]} Rxf5 {[%emt 0:02:33]} 28. Rhf1 {[%emt 0:00:21]} Rxf1 {[%emt 0:00:51]} 29. Rxf1+ {[%emt 0:00:08]} Kg5 {[%emt 0:00:59]} 30. Rf7 {[%emt 0:00:40]} Kg6 {[%emt 0:01:55]} 31. Rxb7 {[%emt 0:00:44]} h5 {[%emt 0:01:08]} 32. h4 {[%emt 0:01:41]} Kf5 {[%emt 0:02:43]} 33. Rxa7 {[%emt 0:00:29]} Kg4 {[%emt 0:00:19]} 34. Re7 {[%emt 0:01:05]} Kxh4 {[%emt 0:00:33]} 35. Re4+ {[%emt 0:00:19]} Kg5 {[%emt 0:00:13]} 36. Re1 {[%emt 0:02:02]} h4 {[%emt 0:00:30]} 37. Rg1+ {[%emt 0:01:59]} Kf4 {[%emt 0:00:46]} 38. Rf1+ {[%emt 0:02:58]} Kg3 {[%emt 0:00:49]} 39. Rg1+ {[%emt 0:00:59]} Kf2 {[%emt 0:00:50]} 40. Rh1 {[%emt 0:01:13]} Kg3 {[%emt 0:00:25]} 41. Rg1+ {[%emt 0:31:41]} Kf4 {[%emt 0:30:30]} 42. Rf1+ {[%emt 0:01:29]} Kg4 {[%emt 0:01:10]} 43. Rg1+ {[%emt 0:00:26]} Kf5 {[%emt 0:03:14]} 44. Rf1+ {[%emt 0:00:26]} Kg4 {[%emt 0:00:53]} 1/2-1/2

[Event "CZE-ch Youth G10-G12-G14 2022"]
[Site "Luhacovice"]
[Date "2022.03.13"]
[Round "2.21"]
[White "Kubickova Linda"]
[Black "Kubatova Ema"]
[Result "0-1"]
[ECO "B30"]
[WhiteElo "1000"]
[BlackElo "1183"]
[Annotator "NA"]
[PlyCount "26"]
[EventDate "2022.03.12"]
[EventType "swiss"]
[EventCountry "CZE"]
[SourceTitle "playchess.com"]
[Source "ChessBase"]
[SourceQuality "1"]
[TimeControl "40/5400+30:1800+30"]

1. e4 {[%emt 0:00:04]} c5 {[%emt 0:00:10]} 2. Nc3 {[%emt 0:00:37]} Nc6 {[%emt 0:01:16]} 3. Nf3 {[%emt 0:01:11]} g6 {[%emt 0:01:36]} 4. Bc4 {[%emt 0:02:02]} Bg7 {[%emt 0:02:39]} 5. Ng5 {[%emt 0:02:12]} Ne5 {[%emt 0:05:42]} 6. d4 {[%emt 0:02:32]} Nxc4 {[%emt 0:04:07]} 7. dxc5 {[%emt 0:02:18]} Ne5 {[%emt 0:05:35]} 8. Bf4 {[%emt 0:02:01]} h6 {[%emt 0:04:02]} 9. Bxe5 {[%emt 0:02:25]} Bxe5 {[%emt 0:00:23]} 10. Qd5 {[%emt 0:01:57]} Bxc3+ {[%emt 0:03:22]} 11. bxc3 {[%emt 0:01:19]} hxg5 {[%emt 0:00:29]} 12. Qxg5 {[%emt 0:01:30]} d6 {[%emt 0:08:51]} 13. Rd1 {[%emt 0:01:35]} Qa5 {[%emt 0:05:30]} 0-1

[Event "CZE-ch Youth G10-G12-G14 2022"]
[Site "Luhacovice"]
[Date "2022.03.13"]
[Round "2.22"]
[White "Vaclavkova Klara"]
[Black "Barteckova, Valerie"]
[Result "1-0"]
[ECO "D02"]
[WhiteElo "1000"]
[BlackElo "1250"]
[Annotator "NA"]
[PlyCount "59"]
[EventDate "2022.03.12"]
[EventType "swiss"]
[EventCountry "CZE"]
[SourceTitle "playchess.com"]
[Source "ChessBase"]
[SourceQuality "1"]
[TimeControl "40/5400+30:1800+30"]

1. d4 {[%emt 0:00:03]} Nf6 {[%emt 0:00:12]} 2. Nf3 {[%emt 0:00:56]} d5 {[%emt 0:00:27]} 3. c4 {[%emt 0:00:37]} e6 {[%emt 0:00:58]} 4. Bf4 {[%emt 0:00:59]} c5 {[%emt 0:02:01]} 5. e3 {[%emt 0:02:36]} Nc6 {[%emt 0:00:54]} 6. Bd3 {[%emt 0:00:43]} Be7 {[%emt 0:05:08]} 7. Nc3 {[%emt 0:02:54]} O-O {[%emt 0:02:36]} 8. O-O {[%emt 0:01:24]} h6 {[%emt 0:02:56]} 9. Ne5 {[%emt 0:01:58]} Nxe5 {[%emt 0:08:53]} 10. Bxe5 {[%emt 0:00:23]} cxd4 {[%emt 0:03:44]} 11. exd4 {[%emt 0:00:22]} dxc4 {[%emt 0:01:53]} 12. Bxc4 {[%emt 0:00:24]} a6 {[%emt 0:09:25]} 13. Qf3 {[%emt 0:03:14]} Qb6 {[%emt 0:04:28]} 14. b3 {[%emt 0:01:40]} Bd7 {[%emt 0:02:40]} 15. Qg3 {[%emt 0:00:53]} Bc6 {[%emt 0:03:07]} 16. d5 {[%emt 0:01:29]} exd5 {[%emt 0:03:59]} 17. Nxd5 {[%emt 0:00:58]} Bxd5 {[%emt 0:01:04]} 18. Bxd5 {[%emt 0:00:12]} Qb5 {[%emt 0:02:26]} 19. Bc4 {[%emt 0:01:04]} Qa5 {[%emt 0:05:02]} 20. Rad1 {[%emt 0:00:24]} Nh5 {[%emt 0:04:43]} 21. Qe3 {[%emt 0:03:59]} Bc5 {[%emt 0:10:59]} 22. Qf3 {[%emt 0:01:09]} g6 {[%emt 0:08:23]} 23. Rd5 {[%emt 0:00:54]} Qb6 {[%emt 0:01:19]} 24. g4 {[%emt 0:04:14]} Qc6 {[%emt 0:08:09]} 25. gxh5 {[%emt 0:01:01]} b5 {[%emt 0:00:33]} 26. Bd3 {[%emt 0:00:53]} f6 {[%emt 0:04:58]} 27. Bb2 {[%emt 0:03:05]} Rae8 {[%emt 0:00:59]} 28. a4 {[%emt 0:01:33]} f5 {[%emt 0:01:44]} 29. Qg3 {[%emt 0:01:53]} Re6 {[%emt 0:00:43]} 30. Rxf5 {[%emt 0:02:54]} 1-0

[Event "CZE-ch Youth G10-G12-G14 2022"]
[Site "Luhacovice"]
[Date "2022.03.13"]
[Round "2.23"]
[White "Mojzisova Barbora"]
[Black "Souralova, Alena"]
[Result "1-0"]
[ECO "C70"]
[WhiteElo "1089"]
[BlackElo "1010"]
[Annotator "NA"]
[PlyCount "91"]
[EventDate "2022.03.12"]
[EventType "swiss"]
[EventCountry "CZE"]
[SourceTitle "playchess.com"]
[Source "ChessBase"]
[SourceQuality "1"]
[TimeControl "40/5400+30:1800+30"]

1. e4 {[%emt 0:00:04]} e5 {[%emt 0:00:12]} 2. Nf3 {[%emt 0:00:23]} Nc6 {[%emt 0:00:27]} 3. Bb5 {[%emt 0:00:50]} a6 {[%emt 0:02:07]} 4. Ba4 {[%emt 0:01:30]} Bc5 {[%emt 0:01:48]} 5. Nxe5 {[%emt 0:03:25]} Nxe5 {[%emt 0:03:38]} 6. d4 {[%emt 0:00:48]} Bd6 {[%emt 0:01:25]} 7. dxe5 {[%emt 0:00:41]} Bxe5 {[%emt 0:01:25]} 8. Nc3 {[%emt 0:01:28]} Bxc3+ {[%emt 0:00:31]} 9. bxc3 {[%emt 0:00:20]} c6 {[%emt 0:01:52]} 10. Bb3 {[%emt 0:02:21]} Nf6 {[%emt 0:01:12]} 11. Qf3 {[%emt 0:03:35]} O-O {[%emt 0:00:46]} 12. e5 {[%emt 0:01:14]} Re8 {[%emt 0:01:05]} 13. Bf4 {[%emt 0:01:54]} d6 {[%emt 0:01:51]} 14. h3 {[%emt 0:02:24]} dxe5 {[%emt 0:01:35]} 15. Bg5 {[%emt 0:02:47]} Be6 {[%emt 0:03:02]} 16. Bxf6 {[%emt 0:01:11]} Qxf6 {[%emt 0:00:20]} 17. Qxf6 {[%emt 0:00:25]} gxf6 {[%emt 0:00:14]} 18. O-O-O {[%emt 0:00:52]} Bxb3 {[%emt 0:00:23]} 19. cxb3 {[%emt 0:00:21]} Rad8 {[%emt 0:00:43]} 20. Rhe1 {[%emt 0:00:50]} Rxd1+ {[%emt 0:00:27]} 21. Rxd1 {[%emt 0:00:20]} Kf8 {[%emt 0:00:50]} 22. Rd7 {[%emt 0:00:38]} Re7 {[%emt 0:00:36]} 23. Rd8+ {[%emt 0:00:37]} Kg7 {[%emt 0:00:50]} 24. Kd2 {[%emt 0:00:12]} Kg6 {[%emt 0:00:42]} 25. Ke3 {[%emt 0:00:49]} Kf5 {[%emt 0:00:19]} 26. g3 {[%emt 0:02:17]} h5 {[%emt 0:02:20]} 27. Rd3 {[%emt 0:02:29]} e4 {[%emt 0:01:43]} 28. Rd4 {[%emt 0:01:07]} Re5 {[%emt 0:01:46]} 29. h4 {[%emt 0:01:43]} Rd5 {[%emt 0:09:03]} 30. Rxe4 {[%emt 0:02:13]} Re5 {[%emt 0:00:16]} 31. Rxe5+ {[%emt 0:00:24]} fxe5 {[%emt 0:00:13]} 32. f3 {[%emt 0:00:14]} f6 {[%emt 0:00:18]} 33. a3 {[%emt 0:00:20]} b5 {[%emt 0:00:18]} 34. b4 {[%emt 0:00:24]} Kg6 {[%emt 0:01:18]} 35. Kd3 {[%emt 0:00:15]} Kf5 {[%emt 0:00:18]} 36. Ke3 {[%emt 0:01:17]} Kg6 {[%emt 0:00:25]} 37. f4 {[%emt 0:00:43]} exf4+ {[%emt 0:01:24]} 38. gxf4 {[%emt 0:00:16]} Kf5 {[%emt 0:01:04]} 39. Kf3 {[%emt 0:00:27]} Ke6 {[%emt 0:00:17]} 40. Ke4 {[%emt 0:00:13]} f5+ {[%emt 0:00:12]} 41. Kd4 {[%emt 0:30:22]} Kd6 {[%emt 0:30:48]} 42. c4 {[%emt 0:00:47]} bxc4 {[%emt 0:00:57]} 43. Kxc4 {[%emt 0:00:10]} Kc7 {[%emt 0:00:07]} 44. Kc5 {[%emt 0:01:27]} Kb7 {[%emt 0:01:12]} 45. Kd6 {[%emt 0:01:09]} Kb6 {[%emt 0:00:15]} 46. a4 {[%emt 0:00:15]} 1-0

[Event "CZE-ch Youth G10-G12-G14 2022"]
[Site "Luhacovice"]
[Date "2022.03.13"]
[Round "2.24"]
[White "Martinkova Klara"]
[Black "Rezacova Julie"]
[Result "1-0"]
[ECO "C55"]
[WhiteElo "1177"]
[BlackElo "1063"]
[Annotator "NA"]
[PlyCount "40"]
[EventDate "2022.03.12"]
[EventType "swiss"]
[EventCountry "CZE"]
[SourceTitle "playchess.com"]
[Source "ChessBase"]
[SourceQuality "1"]
[TimeControl "40/5400+30:1800+30"]

1. e4 {[%emt 0:00:05]} e5 {[%emt 0:00:06]} 2. Nf3 {[%emt 0:00:23]} Nc6 {[%emt 0:00:17]} 3. Bc4 {[%emt 0:00:30]} Nf6 {[%emt 0:00:25]} 4. d3 {[%emt 0:00:46]} Be7 {[%emt 0:00:23]} 5. Nc3 {[%emt 0:00:47]} d6 {[%emt 0:00:31]} 6. h3 {[%emt 0:00:59]} O-O {[%emt 0:00:21]} 7. O-O {[%emt 0:01:56]} Bd7 {[%emt 0:03:21]} 8. Be3 {[%emt 0:03:59]} a6 {[%emt 0:04:02]} 9. d4 {[%emt 0:04:28]} b5 {[%emt 0:02:17]} 10. Bd5 {[%emt 0:00:41]} Nxd5 {[%emt 0:02:33]} 11. Nxd5 {[%emt 0:00:34]} exd4 {[%emt 0:03:12]} 12. Nxd4 {[%emt 0:01:46]} Bf6 {[%emt 0:02:27]} 13. c3 {[%emt 0:04:39]} Nxd4 {[%emt 0:01:48]} 14. Bxd4 {[%emt 0:00:42]} Be6 {[%emt 0:01:14]} 15. Nxf6+ {[%emt 0:03:07]} gxf6 {[%emt 0:00:15]} 16. Qf3 {[%emt 0:01:34]} c5 {[%emt 0:03:22]} 17. Bxf6 {[%emt 0:00:24]} Qd7 {[%emt 0:03:19]} 18. Qf4 {[%emt 0:02:30]} Rfd8 {[%emt 0:03:20]} 19. Qg5+ {[%emt 0:01:34]} Kf8 {[%emt 0:00:22]} 20. Qg7+ {[%emt 0:00:14]} Ke8 {[%emt 0:00:35]} 1-0